[Event "CCT Julius Baer-D3 2024"]
[Site "Online"]
[Date "2024.09.27"]
[Round "1.3"]
[White "Gelfand, Boris"]
[Black "Predke, Alexandr"]
[Result "1-0"]
[ECO "E16"]
[WhiteElo "2658"]
[BlackElo "2671"]
[Annotator "TA"]
[PlyCount "87"]
[EventDate "2024.09.25"]
[EventType "swiss"]
[EventCountry "NET"]
[SourceTitle "playchess.com"]
[Source "ChessBase"]
[SourceQuality "1"]
[TimeControl "600+2"]

{[%evp 15,87,20,25,15,24,24,19,34,25,28,25,31,35,39,27,30,42,32,27,39,41,-15,-11,-18,-16,-16,-8,-15,0,-8,4,7,13,0,0,-11,-6,0,12,14,15,9,51,70,47,47,61,27,23,22,72,57,68,71,262,252,354,324,343,343,343,308,315,308,354,372,334,281,29975,29976,29984,29983,29990,29991]} 1. d4 {[%emt 0:00:03]} Nf6 {[%emt 0:00:04]} 2. c4 {[%emt 0:00:01]} e6 {[%emt 0:00:00]} 3. Nf3 {[%emt 0:00:00]} b6 {[%emt 0:00:01]} 4. g3 {[%emt 0:00:01]} Bb4+ {[%emt 0:00:01]} 5. Bd2 {[%emt 0:00:02]} Bxd2+ {[%emt 0:00:01]} 6. Qxd2 {[%emt 0:00:01]} Bb7 {[%emt 0:00:01]} 7. Bg2 {[%emt 0:00:01]} O-O {[%emt 0:00:01]} 8. Nc3 {[%emt 0:00:04]} Ne4 {[%emt 0:00:02]} 9. Qd3 {[%emt 0:00:02]} (9. Nxe4 {simplifies} Bxe4 10. Qf4 Bb7 11. O-O) 9... Nxc3 {[%emt 0:00:03]} 10. Ng5 {[%emt 0:00:01][%csl Gg5][%cal Rd3h7] [#] Inhibits Ne4.} Ne4 $1 {[%emt 0:00:01]} 11. Nxe4 {[%emt 0:00:01][%cal Oe4g5] Strongly threatening Ng5! The position is equal.} Nc6 {[%emt 0:00:08]} (11... f5 $2 12. Nf6+ Qxf6 13. Bxb7 $18) 12. O-O {[%emt 0:00:02]} f5 {[%emt 0:00:01]} 13. Nc3 {[%emt 0:00:02]} Nb4 {[%emt 0:00:14]} 14. Qd2 {[%emt 0:00:01]} Bxg2 {[%emt 0:00:01]} 15. Kxg2 {[%emt 0:00:01]} Nc6 {[%emt 0:00:04][%cal Of5f4]} 16. Rad1 {[%emt 0:00:14]} Ne7 {[%emt 0:00:06]} 17. d5 {[%emt 0:00:37]} Ng6 {[%emt 0:00:03]} 18. d6 {[%emt 0:00:34]} (18. f4 $14) 18... c6 $1 $11 {[%emt 0:00:25]} 19. f4 {[%emt 0:00:35]} e5 {[%emt 0:00:21]} 20. e3 {[%emt 0:00:13]} Qf6 {[%emt 0:00:16]} 21. b4 {[%emt 0:00:09]} Qe6 {[%emt 0:00:49]} 22. Qd3 {[%emt 0:00:11]} a5 {[%emt 0:01:03]} 23. b5 {[%emt 0:00:55] White wants to play bxc6.} Rac8 {[%emt 0:00:02]} 24. Rd2 {[%emt 0:00:33]} cxb5 {[%emt 0:02:31]} 25. cxb5 {[%emt 0:00:12]} e4 $1 {[%emt 0:00:47]} 26. Qc2 {[%emt 0:00:01]} Nh8 {[%emt 0:01:26]} 27. Qb2 {[%emt 0:00:19] Threatening Na4.} Nf7 {[%emt 0:00:01]} 28. Rfd1 {[%emt 0:00:32]} h5 {[%emt 0:00:20]} (28... Rc5 $6 29. Na4 Rc4 30. Nxb6 $16) 29. Na4 {[%emt 0:01:03][%cal Bc3a4,Ba4b6,Bb6d5,Bd5c7,Bc7d5,Bd5e7][%mdl 32]} Rc4 $1 {[%emt 0:00:10]} 30. Nxb6 {[%emt 0:00:42]} Rb4 {[%emt 0:00:01]} 31. Qa3 {[%emt 0:00:03] White is much more active.} Rxb5 {[%emt 0:00:09]} 32. Nd5 $36 {[%emt 0:00:01][%mdl 2048] [#] Nc7 is the strong threat. White has some pressure.} Qh6 {[%emt 0:00:49]} (32... Rb7 $11 {remains equal.}) 33. Nc7 $16 {[%emt 0:01:09]} Rbb8 {[%emt 0:00:20]} 34. Qxa5 {[%emt 0:00:01]} Qh7 {[%emt 0:00:10] Loses the game.} (34... Qg6 $16) 35. Nd5 $18 {[%emt 0:00:22]} Nh6 {[%emt 0:00:01]} (35... Kh8 $142 36. Ne7 h4 37. Qxf5 (37. Nxf5 Qh5 $11) 37... Qxf5 38. Nxf5 Kh7 39. gxh4 (39. Nxh4 Rfc8 $18) 39... Rfc8) 36. Ne7+ {[%emt 0:00:02]} Kh8 {[%emt 0:00:01]} 37. h3 {[%emt 0:00:02]} h4 {[%emt 0:00:07]} 38. gxh4 {[%emt 0:00:05]} Ng8 {[%emt 0:00:14]} 39. Kh2 {[%emt 0:00:15]} Nxe7 {[%emt 0:00:18]} 40. dxe7 {[%emt 0:00:01]} Rfe8 {[%emt 0:00:01]} 41. Qe5 {[%emt 0:00:28]} (41. Rxd7 Qxh4 42. R1d2 (42. Qxf5 Qf2+ 43. Kh1 Qf3+ 44. Kh2 Qf2+ 45. Kh1 Qf3+ 46. Kh2 Qf2+ $11) 42... Rxe7 43. Qxf5 Rxd7 44. Qxd7 Qe1) 41... Rb6 $2 {[%emt 0:00:01]} (41... Qxh4 $18 42. Rg2 (42. Rxd7 Qf2+ 43. Kh1 Qf3+ 44. Kh2 Qf2+ 45. Kh1 Qf3+ 46. Kh2 Qf2+ $11) (42. Qxf5 Rxe7 43. Rg2 Qf6 $18) 42... Qf6 43. Qxf6 (43. Rxd7 Qxe5 44. fxe5 Kg8 $18) 43... gxf6 44. Rxd7 Kh7) 42. Rxd7 {[%emt 0:00:15] White mates.} Qxh4 {[%emt 0:00:02]} 43. Rg1 $1 {[%emt 0:00:06][%csl Gg1][%cal Re5g7]} ({Stronger than} 43. Qxf5 Qf2+ 44. Kh1 Qf3+ 45. Kh2 (45. Kg1 Qxe3+ 46. Kh1 Qf3+ 47. Kg1 Qg3+ 48. Kf1 Qf3+ 49. Kg1 Qe3+ 50. Kf1 Qf3+ 51. Kg1 $11) 45... Qe2+ 46. Kg3 Qf3+ 47. Kh2 Qf2+ 48. Kh1 Qf3+ 49. Kh2 $11 (49. Kg1 Qg3+ 50. Kh1 Qf3+ $11)) 43... Rf6 {[%emt 0:00:08]} 44. Rd8 {[%emt 0:00:11] Weighted Error Value: White=0.08 (flawless) /Black=0.30.  Loses game:     	---       	Black=1      Mistake:       	White=1     	Black=3      Inaccurate:     	White=1     	Black=1      OK:         	White=19    	Black=14     Best:        	White=2     	Black=2      Strong:       	---       	Black=4} 1-0

[Event "CCT Julius Baer-D3 2024"]
[Site "Online"]
[Date "2024.09.27"]
[Round "1.3"]
[White "Korobov, Anton"]
[Black "Ponkratov, Pavel"]
[Result "1/2-1/2"]
[ECO "E43"]
[WhiteElo "2650"]
[BlackElo "2564"]
[Annotator "TA"]
[PlyCount "105"]
[EventDate "2024.09.25"]
[EventType "swiss"]
[EventCountry "NET"]
[SourceTitle "playchess.com"]
[Source "ChessBase"]
[SourceQuality "1"]
[TimeControl "600+2"]

{[%evp 46,105,169,128,125,108,164,151,162,168,148,56,162,45,34,26,25,0,0,0,0,0,0,0,0,0,0,0,0,0,14,0,0,0,-6,-18,-20,-24,-15,-15,-25,-14,-14,-30,-30,-30,-14,-19,-14,-22,-8,-25,0,-8,0,0,0,0,0,0,685,0]} 1. d4 {[%emt 0:00:03]} Nf6 {[%emt 0:00:12]} 2. c4 {[%emt 0:00:01]} e6 {[%emt 0:00:03]} 3. Nc3 {[%emt 0:00:06]} Bb4 {[%emt 0:00:14]} 4. Nf3 {[%emt 0:00:02]} b6 {[%emt 0:00:10]} 5. e3 {[%emt 0:00:07]} Bxc3+ {[%emt 0:00:09]} 6. bxc3 {[%emt 0:00:03]} Bb7 {[%emt 0:00:01]} 7. Bd3 {[%emt 0:00:02]} d6 {[%emt 0:00:01]} 8. O-O {[%emt 0:00:03]} Nbd7 {[%emt 0:00:01] E43: Nimzo-Indian: Rubinstein: 4...b6.} 9. Nd2 {[%emt 0:00:01]} e5 {[%emt 0:00:03]} 10. e4 {[%emt 0:00:02]} Qe7 {[%emt 0:00:09]} 11. Re1 {[%emt 0:00:03]} c5 {[%emt 0:00:10]} 12. Bb2 $146 {[%emt 0:00:12]} ({Predecessor:} 12. Nf1 exd4 13. cxd4 cxd4 14. Bb2 Ne5 15. Bxd4 O-O 16. Ng3 Qe6 17. f4 Nxd3 18. Qxd3 {0-1 Pap,G (2384)-Bojchev,M (2240) Wch U14 Belfort 2005 (9)}) 12... Nf8 {[%emt 0:00:06]} 13. Nf1 {[%emt 0:00:04]} Ng6 {[%emt 0:00:02]} 14. f3 {[%emt 0:00:16]} Nf4 {[%emt 0:00:04]} 15. Bc2 {[%emt 0:00:16]} O-O-O {[%emt 0:00:22]} 16. Ne3 {[%emt 0:00:04]} g5 {[%emt 0:00:02]} 17. a4 {[%emt 0:00:17]} g4 {[%emt 0:00:07]} 18. fxg4 {[%emt 0:00:29]} h5 {[%emt 0:00:03]} 19. Nf5 {[%emt 0:00:30]} Qd7 {[%emt 0:00:54]} 20. g5 {[%emt 0:00:42]} Rhg8 {[%emt 0:00:43]} 21. h4 {[%emt 0:01:35]} Ng4 {[%emt 0:01:23]} 22. dxe5 {[%emt 0:00:33]} Nxe5 {[%emt 0:00:16]} 23. Rf1 {[%emt 0:00:05]} Nfg6 {[%emt 0:00:16]} (23... Nxg2 $2 24. Kxg2 f6 25. Bc1 $18 (25. Qxh5 fxg5 $18)) 24. Qe2 {[%emt 0:00:18]} Qe6 {[%emt 0:00:14]} 25. a5 {[%emt 0:00:37]} f6 {[%emt 0:00:09]} (25... Qxc4 $16 {was called for.} 26. Qe1 (26. Qxh5 Rh8 $16) 26... Qe6) 26. axb6 {[%emt 0:00:07]} (26. Qxh5 Rh8 27. Nh6 fxg5 28. hxg5 (28. Qxg5 Nxh4 29. Rf6 Nhf3+ 30. gxf3 Nxf3+ 31. Rxf3 Rxh6 $15) 28... Rdf8 $14) 26... axb6 {[%emt 0:00:03]} 27. Bc1 {[%emt 0:00:06]} (27. Qxh5 Rh8 28. Nh6 fxg5 29. hxg5 (29. Qxg5 Nxh4 30. Rf6 Qh3 $15) 29... Rdf8 $16) 27... Ng4 {[%emt 0:00:09]} 28. gxf6 {[%emt 0:00:37]} (28. Ne3 $16 {Strongly threatening Nxg4.} Nxe3 29. Bxe3) 28... Qxf6 {[%emt 0:00:16] [#]} ({Better is} 28... Qe5 $1 $14 29. g3 Nxf6) 29. e5 {[%emt 0:00:25]} (29. Bg5 $1 $18 {[%mdl 512]} Qe5 30. g3) 29... Qxe5 $14 {[%emt 0:00:44]} 30. Qxe5 {[%emt 0:00:03]} N4xe5 {[%emt 0:00:01]} 31. Rd1 {[%emt 0:00:40]} (31. Bg5 $2 Nxh4 32. Nxh4 (32. Ne7+ $2 Kb8 $19) 32... Rxg5 $19) 31... Kc7 {[%emt 0:00:11]} (31... Nxc4 32. Bb3 (32. Bg5 $2 Nxh4 33. Nxh4 Rxg5 $19) 32... d5 33. Bg5 $14) 32. Bg5 {[%emt 0:00:04]} Rd7 {[%emt 0:00:05]} 33. Ra7 {[%emt 0:00:14]} Kb8 {[%emt 0:00:17]} 34. Rxb7+ {[%emt 0:00:13]} Kxb7 {[%emt 0:00:06]} 35. Nxd6+ {[%emt 0:00:09]} Kb8 $1 {[%emt 0:00:10]} 36. Bf5 {[%emt 0:00:01]} Ra7 {[%emt 0:00:20]} 37. Nb5 {[%emt 0:00:10]} Nxh4 {[%emt 0:00:29]} 38. Bxh4 {[%emt 0:00:39]} (38. Be6 $5 Rag7 $8 (38... Rxg5 39. Rd8+ Kb7 40. Bc8+ Kc6 41. Rd6#) 39. Bxg8 (39. Bxh4 $2 {too greedy.} Rxg2+ 40. Kh1 Nf3 $19) 39... Rxg8 40. Rd8+ (40. Bxh4 Nf3+ 41. Kh1 Nxh4 $11) 40... Rxd8 41. Bxd8 $18) 38... Nf3+ {[%emt 0:00:01]} 39. Kh1 {[%emt 0:00:08]} Nxh4 {[%emt 0:00:01]} 40. Nxa7 {[%emt 0:00:01]} (40. Be6 $5 Re8 41. Rd6 $11) 40... Nxf5 {[%emt 0:00:05]} 41. Rd7 {[%emt 0:00:06]} Rg6 {[%emt 0:00:46]} 42. Nb5 {[%emt 0:00:05]} Ne3 {[%emt 0:00:13]} 43. Nd6 {[%emt 0:00:08]} Nxg2 {[%emt 0:00:02]} (43... Rxg2 44. Rb7+ Ka8 45. Re7) 44. Rb7+ {[%emt 0:00:02]} Ka8 {[%emt 0:00:01]} 45. Rxb6 {[%emt 0:00:00]} Ne1 {[%emt 0:00:34]} 46. Rb1 {[%emt 0:00:28]} Nd3 {[%emt 0:00:22]} 47. Ne4 {[%emt 0:00:04]} Rg4 {[%emt 0:00:03]} 48. Nd6 {[%emt 0:00:17]} h4 {[%emt 0:00:06]} 49. Kh2 {[%emt 0:00:01]} Ne5 {[%emt 0:00:01]} 50. Rf1 {[%emt 0:00:07]} Nxc4 {[%emt 0:00:29]} 51. Kh3 {[%emt 0:00:04]} Rg3+ {[%emt 0:00:04]} 52. Kxh4 {[%emt 0:00:01]} Rxc3 $2 {[%emt 0:00:01][%mdl 8192]} (52... Re3 $11 53. Nxc4 Re4+ 54. Kg3 Rxc4) 53. Ne4 $2 {[%emt 0:00:01]} (53. Rf8+ $18 Ka7 54. Nb5+ Kb7 55. Nxc3) 1/2-1/2

[Event "CCT Julius Baer-D3 2024"]
[Site "Online"]
[Date "2024.09.27"]
[Round "1.3"]
[White "Micki-taryan"]
[Black "Caruana, Fabiano"]
[Result "0-1"]
[ECO "D44"]
[WhiteElo "2646"]
[BlackElo "2750"]
[Annotator "TA"]
[PlyCount "88"]
[EventDate "2024.09.25"]
[EventType "swiss"]
[EventCountry "NET"]
[SourceTitle "playchess.com"]
[Source "ChessBase"]
[SourceQuality "1"]
[TimeControl "600+2"]

{[%evp 22,88,22,0,26,0,29,0,0,-53,35,30,99,152,143,143,147,147,124,131,110,91,87,89,92,56,55,37,42,-47,-52,-36,-32,-44,-62,-110,-91,-93,-31,-270,-252,-300,-284,-395,-397,-389,-385,-402,-389,-588,-569,-529,-426,-730,-730,-730,-730,-750,-723,-3171,-4172,-4958,-4372,-5310,-3620,-5522,-4953,-29989,-29990]} 1. d4 {[%emt 0:00:02]} Nf6 {[%emt 0:00:03]} 2. c4 {[%emt 0:00:02]} e6 {[%emt 0:00:01]} 3. Nf3 {[%emt 0:00:01]} d5 {[%emt 0:00:01]} 4. Nc3 {[%emt 0:00:00]} c6 {[%emt 0:00:02]} 5. Bg5 {[%emt 0:00:01]} dxc4 {[%emt 0:00:01]} 6. e4 {[%emt 0:00:02][%cal Be2e4,Be4e5][%mdl 32]} b5 {[%emt 0:00:02]} 7. e5 {[%emt 0:00:02]} h6 {[%emt 0:00:02]} 8. Bh4 {[%emt 0:00:01]} g5 {[%emt 0:00:01]} 9. Nxg5 {[%emt 0:00:01]} hxg5 {[%emt 0:00:01]} 10. Bxg5 {[%emt 0:00:00]} Nbd7 {[%emt 0:00:01]} 11. exf6 {[%emt 0:00:06]} Bb7 {[%emt 0:00:02]} 12. Be2 {[%emt 0:00:03]} Qa5 {[%emt 0:00:03]} 13. O-O {[%emt 0:00:41]} O-O-O {[%emt 0:00:05]} 14. h4 {[%emt 0:00:19]} (14. h3 $5) 14... Ne5 {[%emt 0:00:06] The position is equal.} 15. Qd2 {[%emt 0:01:50]} (15. Qc1 $11 Nd3 16. Bxd3 cxd3 17. d5) 15... b4 {[%emt 0:01:26]} (15... Bc5 $1 $15 16. Rad1 (16. a4 Rxd4 17. Qc2 b4 $17) 16... Rxd4) 16. Ne4 $14 {[%emt 0:00:48] [#] Qe3 is the strong threat.} Qd5 {[%emt 0:02:31]} (16... Nd3 $11 {keeps the balance.}) 17. dxe5 $16 {[%emt 0:00:53]} Qxe4 {[%emt 0:00:02]} 18. Qe3 {[%emt 0:00:01]} Qxe3 {[%emt 0:00:02]} 19. Bxe3 {[%emt 0:00:01]} (19. fxe3 c3 $16) 19... Rxh4 {[%emt 0:00:14]} 20. f4 {[%emt 0:00:02]} (20. Bxa7 $2 Rd2 21. Rfe1 (21. g3 $2 Rh8 $19) 21... c5 $19 (21... Rxb2 22. Be3 $19)) 20... c3 {[%emt 0:00:24]} 21. bxc3 {[%emt 0:00:47]} (21. Bxa7 Rd2 (21... cxb2 $2 22. Rad1 $19) 22. Rfe1 cxb2 $19 (22... Rxf4 $2 23. bxc3 bxc3 24. Rac1 $19) (22... Rxb2 $2 23. Bb6 $19)) 21... bxc3 {[%emt 0:00:00] [#]} 22. a3 $1 {[%emt 0:00:14][%cal Og1f2]} (22. Bxa7 Rd2 23. Bf2 Rxf4 $17) 22... Rd2 {[%emt 0:00:53]} 23. Rf2 {[%emt 0:00:24]} Rb2 {[%emt 0:00:10]} 24. Bf3 {[%emt 0:00:53]} (24. Bd3 $5) 24... Rxf4 {[%emt 0:01:26]} 25. Rxb2 {[%emt 0:01:00]} (25. Bxf4 $14 Bc5 26. Bg3) 25... cxb2 $15 {[%emt 0:00:00]} 26. Rb1 {[%emt 0:00:01]} Rf5 {[%emt 0:00:07]} 27. Rxb2 {[%emt 0:01:31]} Rxe5 {[%emt 0:00:02]} 28. Bd4 {[%emt 0:00:13]} (28. Rb3 $15) 28... Rf5 {[%emt 0:00:33]} 29. Rb3 {[%emt 0:00:34]} a5 {[%emt 0:00:37]} (29... Ra5 $17 {[%cal Oc8c7]} 30. Bc3 Rf5 (30... Rxa3 31. Rxa3 Bxa3 32. Bh5 $14)) 30. Re3 $2 {[%emt 0:00:21]} (30. g4 $1 $15 Rb5 31. Rc3) 30... c5 $19 {[%emt 0:00:35]} 31. Bxb7+ {[%emt 0:00:00]} Kxb7 {[%emt 0:00:00][%mdl 4096] Endgame. KRB-KRB} 32. Bc3 {[%emt 0:00:00]} c4 {[%emt 0:00:01][%cal Of8c5] Hoping for ...Bc5!} 33. Re4 {[%emt 0:00:09]} Bxa3 {[%emt 0:00:15]} 34. g4 {[%emt 0:00:00]} Rc5 {[%emt 0:00:14]} 35. Kg2 {[%emt 0:00:06]} (35. Kf2 $142) 35... Bb4 {[%emt 0:00:03]} 36. Bd4 {[%emt 0:00:00]} Rc6 {[%emt 0:00:24] Strongly threatening ...c3.} 37. Be3 {[%emt 0:00:01]} (37. g5 $142) 37... a4 {[%emt 0:00:06] ...a3 would now be deadly.} 38. g5 {[%emt 0:00:03]} a3 {[%emt 0:00:02] Threatens to win with ...a2.} 39. g6 {[%emt 0:00:01]} fxg6 {[%emt 0:00:02] aiming for ...a2.} 40. Rh4 {[%emt 0:00:05]} a2 {[%emt 0:00:02]} 41. Rh1 {[%emt 0:00:01]} Bc3 {[%emt 0:00:22]} 42. f7 {[%emt 0:00:01]} Rc8 {[%emt 0:00:01]} (42... a1=B $2 {too greedy.} 43. f8=Q $18 (43. f8=B $2 e5 $19)) (42... a1=Q 43. Rxa1 Bg7 44. Ra7+ Kb8 45. Re7 $16) 43. Bc5 {[%emt 0:00:05] Dodges Rf8} a1=Q {[%emt 0:00:02] ( -> ...Qb2+)} ({Not} 43... a1=B 44. f8=Q Rxf8 45. Bxf8 $15) 44. Rh7 {[%emt 0:00:02]} Kc6 {[%emt 0:00:02] Quite a comeback for Black.   Weighted Error Value: White=0.65/Black=0.16 (very precise) .  Loses game:     	White=1     	---        Mistake:       	White=5     	Black=3      Inaccurate:     	White=3     	---        OK:         	White=10    	Black=13     Best:        	White=3     	Black=3      Strong:       	White=1     	---} 0-1

[Event "CCT Julius Baer-D3 2024"]
[Site "Online"]
[Date "2024.09.27"]
[Round "1.3"]
[White "Guseinov, Gadir"]
[Black "Bharath Subramaniyam H"]
[Result "1/2-1/2"]
[ECO "C67"]
[WhiteElo "2636"]
[BlackElo "2561"]
[Annotator "RC"]
[PlyCount "159"]
[EventDate "2024.09.25"]
[EventType "swiss"]
[EventCountry "NET"]
[SourceTitle "playchess.com"]
[Source "ChessBase"]
[SourceQuality "1"]
[TimeControl "600+2"]

1. e4 {[%emt 0:00:02]} e5 {[%emt 0:00:04]} 2. Nf3 {[%emt 0:00:01]} Nc6 {[%emt 0:00:01]} 3. Bb5 {[%emt 0:00:01]} Nf6 {[%emt 0:00:01]} 4. O-O {[%emt 0:00:02]} Nxe4 {[%emt 0:00:02]} 5. d4 {[%emt 0:00:03]} Nd6 {[%emt 0:00:03]} 6. Bxc6 {[%emt 0:00:02]} dxc6 {[%emt 0:00:01]} 7. dxe5 {[%emt 0:00:00]} Nf5 {[%emt 0:00:00]} 8. Qxd8+ {[%emt 0:00:01]} Kxd8 {[%emt 0:00:00]} 9. h3 {[%emt 0:00:01]} Bd7 {[%emt 0:00:14]} 10. Rd1 {[%emt 0:00:04]} Kc8 {[%emt 0:01:00]} 11. a4 {[%emt 0:00:02]} a5 {[%emt 0:00:26]} 12. g4 {[%emt 0:00:01]} Ne7 {[%emt 0:00:03]} 13. Ra3 {[%emt 0:00:01]} Nd5 {[%emt 0:01:09]} 14. Rad3 {[%emt 0:00:01]} Be7 {[%emt 0:00:03]} 15. c4 {[%emt 0:01:59]} Nb6 {[%emt 0:00:03]} 16. b3 {[%emt 0:00:02]} h5 {[%emt 0:00:37]} 17. Nh2 {[%emt 0:00:02]} hxg4 {[%emt 0:00:06]} 18. hxg4 {[%emt 0:00:00]} Be6 {[%emt 0:00:22]} 19. Nc3 {[%emt 0:00:08]} Nd7 {[%emt 0:00:46]} 20. Re3 {[%emt 0:00:34]} Rh4 {[%emt 0:00:53]} 21. Kg2 {[%emt 0:00:47]} Bxg4 {[%emt 0:00:20]} 22. Nxg4 {[%emt 0:00:02]} Rxg4+ {[%emt 0:00:01]} 23. Kf3 {[%emt 0:00:05]} Rg6 {[%emt 0:00:09]} 24. Ne2 {[%emt 0:00:34]} Bg5 {[%emt 0:00:20]} 25. Nf4 {[%emt 0:00:03]} Bxf4 {[%emt 0:00:03]} 26. Kxf4 {[%emt 0:00:00]} Nc5 {[%emt 0:00:19]} 27. Rh3 {[%emt 0:00:56]} b6 {[%emt 0:00:07]} 28. Be3 {[%emt 0:00:26]} Ne6+ {[%emt 0:00:56]} 29. Kf5 {[%emt 0:00:16]} Kb7 {[%emt 0:01:06]} 30. Rd7 {[%emt 0:00:02]} Rg1 {[%emt 0:00:19]} 31. Rxf7 {[%emt 0:00:06]} Re8 {[%emt 0:00:00]} 32. Rg3 {[%emt 0:00:15]} Rh1 {[%emt 0:00:16]} 33. f4 {[%emt 0:00:35]} g5 {[%emt 0:00:20]} 34. fxg5 {[%emt 0:01:02]} Rf1+ {[%emt 0:00:02]} 35. Kg6 {[%emt 0:00:01]} Nf8+ {[%emt 0:00:21]} 36. Rxf8 {[%emt 0:00:24]} Rfxf8 {[%emt 0:00:00]} 37. Bd4 {[%emt 0:00:11]} Kc8 {[%emt 0:00:16]} 38. c5 {[%emt 0:00:44]} Kd7 {[%emt 0:00:15]} 39. Rh3 {[%emt 0:00:31]} Rg8+ {[%emt 0:00:04]} 40. Kf5 {[%emt 0:00:03]} Ref8+ {[%emt 0:00:05]} 41. Kg4 {[%emt 0:00:01]} Ke6 {[%emt 0:00:03]} 42. cxb6 {[%emt 0:00:08]} cxb6 {[%emt 0:00:00]} 43. Rh6+ {[%emt 0:00:02]} Kd5 {[%emt 0:00:01]} 44. Rd6+ {[%emt 0:00:01]} Ke4 {[%emt 0:00:01]} 45. Bxb6 {[%emt 0:00:27]} Rf4+ {[%emt 0:00:01]} 46. Kh5 {[%emt 0:00:02]} Rf5 {[%emt 0:00:01]} 47. Bd8 {[%emt 0:00:07]} Kxe5 {[%emt 0:00:04]} 48. Rd1 {[%emt 0:00:01]} Rf3 {[%emt 0:00:03]} 49. Bf6+ {[%emt 0:00:07]} Ke6 {[%emt 0:00:04]} 50. Re1+ {[%emt 0:00:03]} Kd6 {[%emt 0:00:03]} 51. Rb1 {[%emt 0:00:14]} Ke6 {[%emt 0:00:02]} 52. Rc1 {[%emt 0:00:04]} Kd6 {[%emt 0:00:05]} 53. Bc3 {[%emt 0:00:01]} Rg3 {[%emt 0:00:02]} 54. Rd1+ {[%emt 0:00:02]} Ke6 {[%emt 0:00:00]} 55. Re1+ {[%emt 0:00:03]} Kd7 {[%emt 0:00:00]} 56. Bf6 {[%emt 0:00:04]} Rh3+ {[%emt 0:00:01]} 57. Kg4 {[%emt 0:00:02]} Rxb3 {[%emt 0:00:00]} 58. Kf5 {[%emt 0:00:06]} Rf3+ {[%emt 0:00:02]} 59. Ke4 {[%emt 0:00:00]} Ra3 {[%emt 0:00:01]} 60. Rd1+ {[%emt 0:00:03]} Ke6 {[%emt 0:00:01]} 61. Rd4 {[%emt 0:00:01]} c5 {[%emt 0:00:02]} 62. Rc4 {[%emt 0:00:01]} Rc8 {[%emt 0:00:01]} 63. Kf4 {[%emt 0:00:03]} Rb3 {[%emt 0:00:03]} 64. Re4+ {[%emt 0:00:01]} Kd5 {[%emt 0:00:04]} 65. Re5+ {[%emt 0:00:03]} Kd6 {[%emt 0:00:01]} 66. Re1 {[%emt 0:00:07]} Rg8 {[%emt 0:00:03]} 67. Be7+ {[%emt 0:00:04]} Kc6 {[%emt 0:00:02]} 68. Re6+ {[%emt 0:00:01]} Kd7 {[%emt 0:00:00]} 69. Re5 {[%emt 0:00:02]} c4 {[%emt 0:00:02]} 70. Bf6 {[%emt 0:00:03]} c3 {[%emt 0:00:04]} 71. Re7+ {[%emt 0:00:04]} Kc6 {[%emt 0:00:01]} 72. Re3 {[%emt 0:00:02]} Rb4+ {[%emt 0:00:05]} 73. Kf5 {[%emt 0:00:02]} Rc4 {[%emt 0:00:02]} 74. Rxc3 {[%emt 0:00:04]} Rxc3 {[%emt 0:00:03]} 75. Bxc3 {[%emt 0:00:00]} Kc5 {[%emt 0:00:01]} 76. g6 {[%emt 0:00:03]} Kc4 {[%emt 0:00:03]} 77. Bxa5 {[%emt 0:00:02]} Kb3 {[%emt 0:00:01]} 78. Kf6 {[%emt 0:00:03]} Kxa4 {[%emt 0:00:01]} 79. Kf7 {[%emt 0:00:00]} Rxg6 {[%emt 0:00:00]} 80. Kxg6 {[%emt 0:00:00]} 1/2-1/2